{"text_format":"2","workbook":"xlsx","n_sheets":1,"sheets":["9  класс"],"not_rendered":{"charts":0,"images":0,"macros":0,"external_links":0,"defined_names":0,"comments":0,"pivot_tables":0},"unopened":[],"bounds":{"document_bytes":16777216,"sheet_cells":100000,"run_cost":"one","rows_first":2000,"rows_last":500,"rows_between":2000,"halvings":0,"cell_chars":16384,"cell_head_chars":4096},"cells_cut":0,"cells_raw":0,"read":"whole","date_system":"1900"}

{"sheet":"9  класс","index":0,"n_rows":48,"n_cols":17,"rows_kept":48,"cut":false,"hidden":false,"merged":[[9,0,9,13],[7,0,7,13],[8,0,8,9],[2,0,2,13],[4,0,4,13],[5,0,5,13],[6,0,6,13]]}
[]
[]
["Протокол школьного этапа этапа всероссийской олимпиады школьников по праву в 2019-2020 уч.г., 9 класс"]
[]
["Количество участников: 25"]
["Дата проведения: (17.09.2019)"]
["Место проведения: г. Чебоксары, МБОУ \"Гимназия № 2\" г. Чебоксары"]
["Председатель жюри: Егорова Е.Б., заместитель директора"]
["Члены жюри: Чугунова Н.Ю., Дмитриев А.Е."]
[]
[]
["№","Шифр","Город","Наименование ОО (сокращенное наименование по Уставу)","Ф.И.О. наставника (полностью)","Класс","Задание 1","Задание 2","Задание 3","Задание 4","Задание 5","Задание 6","Задание 7","ИТОГО БАЛЛОВ","МАКСИМАЛЬНЫЙ БАЛЛ","Эффективность участия (%)","Результат (победитель/призер/                                  участник)"]
[1,"П-9-24","г. Чебоксары","МБОУ \"Гимназия №2\" г. Чебоксары","Чугунова Наталия Викторовна","9М",4,2,2,0,0,1,7,{"$f":"SUM(G13,H13,I13,J13,K13,L13,M13)","v":16},61,26]
[2,"П-9-11","г. Чебоксары","МБОУ \"Гимназия №2\" г. Чебоксары","Чугунова Наталия Викторовна","9Б",6,1,4,0,0,1,3,15,61,25]
[3,"П-9-14","г. Чебоксары","МБОУ \"Гимназия №2\" г. Чебоксары","Чугунова Наталия Викторовна","9Б",5,0,4,0,0,1,4,14,61,23]
[4,"П-9-19","г. Чебоксары","МБОУ \"Гимназия №2\" г. Чебоксары","Чугунова Наталия Викторовна","9Б",7,2,2,0,0,0,1,12,61,20]
[5,"П-9-22","г. Чебоксары","МБОУ \"Гимназия №2\" г. Чебоксары","Чугунова Наталия Викторовна","9М",5,2,0,0,0,3,2,12,61,20]
[6,"П-9-1","г. Чебоксары","МБОУ \"Гимназия №2\" г. Чебоксары","Чугунова Наталия Викторовна","9Б",7,2,0,0,0,1,1,11,61,18]
[7,"П-9-10","г. Чебоксары","МБОУ \"Гимназия №2\" г. Чебоксары","Чугунова Наталия Викторовна","9Б",5,0,0,0,0,4,2,11,61,18]
[8,"П-9-23","г. Чебоксары","МБОУ \"Гимназия №2\" г. Чебоксары","Чугунова Наталия Викторовна","9М",3,1,0,0,0,3,4,11,61,18]
[9,"П-9-25","г. Чебоксары","МБОУ \"Гимназия №2\" г. Чебоксары","Чугунова Наталия Викторовна","9А",5,1,0,0,0,1,4,11,61,18]
[10,"П-9-2","г. Чебоксары","МБОУ \"Гимназия №2\" г. Чебоксары","Чугунова Наталия Викторовна","9Б",5,0,0,0,0,3,2,10,61,16]
[11,"П-9-6","г. Чебоксары","МБОУ \"Гимназия №2\" г. Чебоксары","Чугунова Наталия Викторовна","9Б",8,0,2,0,0,0,0,10,61,16]
[12,"П-9-3","г. Чебоксары","МБОУ \"Гимназия №2\" г. Чебоксары","Чугунова Наталия Викторовна","9Б",5,1,0,0,0,1,2,9,61,15]
[13,"П-9-5","г. Чебоксары","МБОУ \"Гимназия №2\" г. Чебоксары","Чугунова Наталия Викторовна","9Б",3,2,2,0,0,0,2,9,61,15]
[14,"П-9-7","г. Чебоксары","МБОУ \"Гимназия №2\" г. Чебоксары","Чугунова Наталия Викторовна","9Б",6,0,2,0,0,0,1,9,61,15]
[15,"П-9-21","г. Чебоксары","МБОУ \"Гимназия №2\" г. Чебоксары","Чугунова Наталия Викторовна","9Б",4,2,2,0,0,0,1,9,61,15]
[16,"П-9-4","г. Чебоксары","МБОУ \"Гимназия №2\" г. Чебоксары","Чугунова Наталия Викторовна","9Б",4,1,2,0,0,0,1,8,61,13]
[17,"П-9-8","г. Чебоксары","МБОУ \"Гимназия №2\" г. Чебоксары","Чугунова Наталия Викторовна","9Б",4,2,0,0,0,0,2,8,61,13]
[18,"П-9-9","г. Чебоксары","МБОУ \"Гимназия №2\" г. Чебоксары","Чугунова Наталия Викторовна","9Б",4,2,0,0,0,0,2,8,61,13]
[19,"П-9-20","г. Чебоксары","МБОУ \"Гимназия №2\" г. Чебоксары","Чугунова Наталия Викторовна","9Б",5,3,0,0,0,0,0,8,61,13]
[20,"П-9-16","г. Чебоксары","МБОУ \"Гимназия №2\" г. Чебоксары","Чугунова Наталия Викторовна","9Б",3,2,2,0,0,0,0,7,61,11]
[21,"П-9-17","г. Чебоксары","МБОУ \"Гимназия №2\" г. Чебоксары","Чугунова Наталия Викторовна","9Б",5,1,0,0,0,0,0,6,61,10]
[22,"П-9-18","г. Чебоксары","МБОУ \"Гимназия №2\" г. Чебоксары","Чугунова Наталия Викторовна","9Б",5,0,0,0,0,0,0,5,61,8]
[23,"П-9-12","г. Чебоксары","МБОУ \"Гимназия №2\" г. Чебоксары","Чугунова Наталия Викторовна","9Б",4,0,0,0,0,0,0,4,61,7]
[24,"П-9-13","г. Чебоксары","МБОУ \"Гимназия №2\" г. Чебоксары","Чугунова Наталия Викторовна","9Б",3,0,0,0,0,0,1,4,61,7]
[25,"П-9-15","г. Чебоксары","МБОУ \"Гимназия №2\" г. Чебоксары","Чугунова Наталия Викторовна","9Б",4,0,0,0,0,0,0,4,61,7]
[null,"Председатель жюри: ",null,null,"____________________"]
[null,"Члены жюри:"]
[{"$nulls":4},"____________________"]
[{"$nulls":4},"____________________"]
[{"$nulls":4},"____________________"]
[{"$nulls":4},"____________________"]
[{"$nulls":4},"____________________"]
[{"$nulls":4},"____________________"]
[{"$nulls":4},"____________________"]
[{"$nulls":4},"____________________"]
[{"$nulls":4},"____________________"]